[Event "Uruguayan Championship 2022"]
[Site "Montevideo"]
[Date "2022.04.12"]
[Round "5.1"]
[White "Palacio, Enzo"]
[Black "Diaz Hollemaert, Nahuel"]
[Result "1/2-1/2"]
[ECO "C92"]
[WhiteElo "1896"]
[BlackElo "2439"]
[Annotator "TA"]
[PlyCount "72"]
[EventDate "2022.04.08"]
[EventType "tourn"]
[EventCountry "URU"]
[SourceTitle "playchess.com"]
[Source "ChessBase"]
[SourceQuality "1"]
[TimeControl "40/5400+30:1800+30"]

{[%evp 19,72,37,41,33,42,43,37,30,42,38,81,54,126,124,122,116,210,17,24,13,19,9,64,63,78,58,60,64,254,258,891,891,1318,1287,1220,892,1029,0,0,0,0,0,0,0,0,0,0,0,0,0,0,0,0,0,0]} 1. e4 {[%emt 0:00:03]} e5 {[%emt 0:09:01]} 2. Nf3 {[%emt 0:00:10]} Nc6 {[%emt 0:00:15]} 3. Bb5 {[%emt 0:00:14]} a6 {[%emt 0:00:14]} 4. Ba4 {[%emt 0:00:03]} Nf6 {[%emt 0:00:05]} 5. O-O {[%emt 0:00:07]} b5 {[%emt 0:00:02]} 6. Bb3 {[%emt 0:00:04]} Be7 {[%emt 0:00:04]} 7. Re1 {[%emt 0:00:07]} d6 {[%emt 0:01:04]} 8. c3 {[%emt 0:00:15]} O-O {[%emt 0:00:09]} 9. h3 {[%emt 0:00:14]} Bd7 {[%emt 0:12:06]} 10. d4 {[%emt 0:05:34]} a5 {[%emt 0:01:35]} 11. a4 {[%emt 0:03:49] C92: Closed Ruy Lopez: 9...Be6, Karpov and Flohr-Zaitsev Variations.} b4 {[%emt 0:00:59]} 12. Nbd2 {[%emt 0:02:42]} bxc3 {[%emt 0:02:41]} 13. bxc3 {[%emt 0:00:07] White is slightly better.} exd4 {[%emt 0:00:02]} 14. Nxd4 {[%emt 0:03:57] [#]} Qc8 $146 {[%emt 0:17:48]} ({Predecessor:} 14... Re8 15. f4 Bf8 16. N2f3 Nxd4 17. cxd4 Rxe4 18. Bxf7+ Kh8 19. Rxe4 Nxe4 20. Bd5 Nc3 {1-0 (46) Deepan Chakkravarthy,J (2428)-Girinath,P (2350) Visakhapatnam 2006}) 15. Nc4 {[%emt 0:15:56] &Bianco is more active.} Nxd4 {[%emt 0:31:41]} ({Better is} 15... Qa6 $14) 16. cxd4 $16 {[%emt 0:04:50]} d5 {[%emt 0:04:52]} 17. exd5 {[%emt 0:08:23]} Nxd5 {[%emt 0:00:02]} (17... Bb4 $16 {keeps fighting.}) 18. Nb6 $2 {[%emt 0:06:19]} cxb6 $11 {[%emt 0:00:34]} 19. Bxd5 {[%emt 0:00:08]} Bb4 {[%emt 0:01:03]} 20. Ba3 {[%emt 0:09:02]} Bxe1 {[%emt 0:09:04]} (20... Ra7 $11) 21. Bxf8 $14 {[%emt 0:01:49]} ({Reject} 21. Qxe1 Re8 22. Qd2 Ra7 $17) 21... Bc6 {[%emt 0:00:44]} 22. Qxe1 {[%emt 0:08:40]} (22. Bxc6 {looks sharper.} Qxc6 23. Be7 Bb4 24. d5) 22... Bxd5 {[%emt 0:00:53]} 23. Bxg7 {[%emt 0:01:56][%cal Oa1a3]} Bxg2 $2 {[%emt 0:03:49]} 24. Kxg2 {[%emt 0:00:16][%cal Og2h2] [#] Black must now prevent Kh2!} Qc6+ $2 {[%emt 0:00:22]} (24... Kxg7 25. Qe5+ f6 26. Qe7+ Kg8) 25. Kh2 $18 {[%emt 0:01:22]} Kxg7 {[%emt 0:00:04][%mdl 4096] Endgame KQR-KQR} 26. Qe5+ {[%emt 0:01:35]} f6 {[%emt 0:01:14]} 27. Qe7+ {[%emt 0:07:58]} Kh8 {[%emt 0:00:06] [#]} 28. Re1 $2 {[%emt 0:16:23]} (28. Rg1 $1 $18 {[%csl Gg1][%cal Re7g7]} Rg8 29. d5) 28... Qf3 $36 {[%emt 0:00:35][%mdl 2048] ( -> ...Rg8). Black fights for an advantage. The position is equal.} 29. Qe3 {[%emt 0:01:48]} Qf5 {[%emt 0:00:28]} 30. Rg1 {[%emt 0:00:28]} Rg8 {[%emt 0:00:33] Against Qg3} 31. Rxg8+ {[%emt 0:00:21]} Kxg8 {[%emt 0:00:01] KQ-KQ} 32. Qe8+ {[%emt 0:00:17]} Kg7 {[%emt 0:00:20]} 33. Qe7+ {[%emt 0:00:09]} Kg6 {[%emt 0:00:30]} 34. Qe3 {[%emt 0:01:08]} Qd7 {[%emt 0:01:46]} 35. Qe4+ {[%emt 0:00:25]} f5 {[%emt 0:00:16]} 36. Qe5 {[%emt 0:00:36]} Qxa4 {[%emt 0:00:39] Black escapes into a draw.  Weighted Error Value: White=0.40/Black=0.37} 1/2-1/2

[Event "Uruguayan Championship 2022"]
[Site "Montevideo"]
[Date "2022.04.12"]
[Round "5.2"]
[White "Rodi, Luis Ernesto"]
[Black "Granara Barreto, Sebastian"]
[Result "1-0"]
[ECO "B24"]
[WhiteElo "2347"]
[BlackElo "2131"]
[Annotator "TA"]
[PlyCount "75"]
[EventDate "2022.04.08"]
[EventType "tourn"]
[EventCountry "URU"]
[SourceTitle "playchess.com"]
[Source "ChessBase"]
[SourceQuality "1"]
[TimeControl "40/5400+30:1800+30"]

{[%evp 10,75,19,17,22,-11,22,9,16,19,37,28,29,23,26,0,14,0,0,0,19,14,19,23,36,18,54,44,52,52,58,47,53,60,123,87,74,-8,68,38,231,243,239,246,230,212,323,355,417,424,470,389,643,662,650,645,604,441,439,422,435,431,841,427,992,967,1472,1453]} 1. e4 {[%emt 0:02:48]} c5 {[%emt 0:00:17]} 2. Nc3 {[%emt 0:00:09]} Nc6 {[%emt 0:00:16]} 3. Bb5 {[%emt 0:00:09]} Nd4 {[%emt 0:01:01]} 4. Nf3 {[%emt 0:00:12]} e6 {[%emt 0:01:19]} 5. O-O {[%emt 0:00:09]} a6 {[%emt 0:00:23]} 6. Bd3 {[%emt 0:00:08]} Nc6 {[%emt 0:00:26] B30: Sicilian: 2...Nc6 3 Bb5, lines without ...g6.} 7. Nd5 {[%emt 0:01:20][%cal Oc2c3] 7.e5 is becoming the main line.} d6 {[%emt 0:02:48]} 8. Ne3 {[%emt 0:00:42] [#]} Nge7 $146 {[%emt 0:02:09] The position is equal.} ({Predecessor:} 8... g5 9. c3 h5 10. Bc2 g4 11. Ne1 Bg7 12. f3 gxf3 13. Nxf3 e5 14. Qe1 h4 {½-½ (39) Khachiyan,M (2525)-Fier,A (2582) Saint Louis 2018}) 9. c3 {[%emt 0:00:18]} d5 {[%emt 0:00:25]} 10. a4 {[%emt 0:03:50]} g6 {[%emt 0:09:51]} 11. exd5 {[%emt 0:26:12]} exd5 {[%emt 0:03:50]} 12. Rb1 {[%emt 0:02:53]} Bg7 {[%emt 0:02:57]} 13. b4 {[%emt 0:00:23]} c4 {[%emt 0:00:17]} 14. Bc2 {[%emt 0:00:40]} b5 {[%emt 0:00:20]} 15. d4 {[%emt 0:00:15]} O-O {[%emt 0:11:27]} 16. Ra1 {[%emt 0:01:44]} Rb8 {[%emt 0:04:20]} 17. Re1 {[%emt 0:01:39]} h6 {[%emt 0:07:03]} 18. h3 {[%emt 0:01:05]} f5 {[%emt 0:10:02]} 19. Nf1 {[%emt 0:04:46][%cal Be3f1,Bf1h2,Bh2g4,Bg4e5][%mdl 32]} f4 {[%emt 0:10:09]} 20. N1h2 {[%emt 0:00:18]} g5 {[%emt 0:05:37]} 21. Ng4 {[%emt 0:01:17]} h5 {[%emt 0:02:27]} ({Black should try} 21... bxa4 $14 22. Bxa4 (22. Rxa4 Rb6 $14) 22... Rb6) 22. Nge5 {[%emt 0:00:19]} g4 {[%emt 0:01:14]} 23. Nh2 {[%emt 0:06:33] &Bianco is more active.} (23. hxg4 $16 hxg4 {[#]} 24. axb5 $1 axb5 25. Ng5 Nxe5 26. dxe5) 23... Nxe5 {[%emt 0:03:24]} (23... Bxe5 $11 24. dxe5 d4) 24. dxe5 $14 {[%emt 0:00:10][%cal Rh3g4]} g3 {[%emt 0:05:01] [#] This costs Black the game.} (24... Nc6 $1 $14) 25. fxg3 $18 {[%emt 0:01:13]} fxg3 {[%emt 0:00:05]} 26. Nf3 {[%emt 0:00:07]} (26. Qxh5 gxh2+ 27. Kxh2 Bf5 28. Bxf5 Nxf5 29. axb5 axb5 $17) 26... Bf5 {[%emt 0:07:26]} 27. Bxf5 {[%emt 0:04:07]} Rxf5 {[%emt 0:03:53]} (27... Nxf5 $142 28. axb5 axb5) 28. Nd4 {[%emt 0:02:27]} Rxe5 {[%emt 0:03:09]} 29. Bf4 {[%emt 0:00:31][%csl LRe5,LRg3]} (29. Rxe5 Bxe5 30. axb5 (30. Qxh5 Bxd4+ 31. cxd4 Qf8 $11) 30... axb5 $16) 29... Rxe1+ {[%emt 0:00:24]} 30. Qxe1 {[%emt 0:00:06]} Rb6 {[%emt 0:00:56]} (30... Bxd4+ $2 31. cxd4 Rb6 32. axb5 (32. Qxg3+ Rg6 $14) 32... axb5 33. Bg5 (33. Qxg3+ Rg6 $18)) (30... Rb7 31. axb5 (31. Bxg3 Qc8 $16) (31. Qxg3 Qb6 $16) 31... axb5) 31. Ne6 {[%emt 0:01:46] White is clearly winning.} ({Worse is} 31. Qxg3 Rg6 32. Qf3 bxa4 $11) 31... Qd7 {[%emt 0:00:34]} 32. Nxg7 {[%emt 0:00:42]} Kxg7 {[%emt 0:00:04]} 33. Qe5+ {[%emt 0:00:17]} Kg8 {[%emt 0:01:09]} 34. axb5 {[%emt 0:01:28]} Ng6 {[%emt 0:01:12]} 35. Qg5 {[%emt 0:00:24]} Re6 {[%emt 0:00:49]} (35... Qxb5 $142 36. Bxg3 Re6) 36. Bxg3 {[%emt 0:00:45]} axb5 {[%emt 0:00:53]} (36... Qxb5 $142 37. Ra5 Qb6+ 38. Rc5 a5) 37. Ra8+ {[%emt 0:00:09]} Kg7 {[%emt 0:00:07]} 38. Bf2 {[%emt 0:00:38] Weighted Error Value: White=0.31/Black=0.44} 1-0

[Event "Uruguayan Championship 2022"]
[Site "Montevideo"]
[Date "2022.04.12"]
[Round "5.3"]
[White "Lopez Azambuja, Nicolas"]
[Black "Carvalho, Guillermo"]
[Result "1/2-1/2"]
[ECO "E06"]
[WhiteElo "2318"]
[BlackElo "2171"]
[Annotator "TA"]
[PlyCount "131"]
[EventDate "2022.04.08"]
[EventType "tourn"]
[EventCountry "URU"]
[SourceTitle "playchess.com"]
[Source "ChessBase"]
[SourceQuality "1"]
[TimeControl "40/5400+30:1800+30"]

{[%evp 21,131,40,83,91,95,36,49,36,71,14,22,5,18,4,13,13,18,0,0,0,25,25,44,26,27,27,62,54,75,46,108,52,44,50,64,39,49,38,74,72,79,61,69,17,17,16,35,35,35,35,39,31,40,40,43,29,40,35,35,33,37,29,35,35,35,31,31,31,45,26,46,33,60,47,62,60,62,47,49,13,56,43,62,50,75,53,54,54,55,15,21,16,5,0,0,0,98,32,131,12,12,15,14,0,13,0,0,0,0,0,0,0]} 1. d4 {[%emt 0:00:04]} Nf6 {[%emt 0:01:10]} 2. c4 {[%emt 0:00:09]} e6 {[%emt 0:00:07]} 3. Nf3 {[%emt 0:00:18]} d5 {[%emt 0:00:19]} 4. g3 {[%emt 0:00:21]} Be7 {[%emt 0:02:58]} 5. Bg2 {[%emt 0:00:06]} O-O {[%emt 0:00:07]} 6. O-O {[%emt 0:00:11]} b6 {[%emt 0:09:13]} 7. cxd5 {[%emt 0:00:59]} exd5 {[%emt 0:00:45]} 8. Nc3 {[%emt 0:00:08]} Bb7 {[%emt 0:01:36]} 9. Bf4 {[%emt 0:01:01]} a6 {[%emt 0:05:43]} 10. Rc1 {[%emt 0:01:28]} Nbd7 {[%emt 0:02:54]} 11. Ne5 {[%emt 0:04:48]} c5 {[%emt 0:19:34]} 12. Nxd7 {[%emt 0:25:00] E18: Queen's Indian: Old Main Line (4 g3 Bb7 5 Bg2 Be7 6 0-0 0-0 7 Nc3).} Qxd7 {[%emt 0:00:41]} 13. dxc5 {[%emt 0:01:08]} (13. Na4 $16 Qb5 14. Bc7) 13... bxc5 $14 {[%emt 0:15:35]} 14. Bg5 {[%emt 0:00:29] [#] White is slightly better.} Rad8 $146 {[%emt 0:05:32]} ({Predecessor:} 14... d4 15. Bxb7 Qxb7 16. Bxf6 Bxf6 17. Na4 Rfc8 18. Rc4 Qd5 19. b3 Rc6 20. Qd3 Qh5 {1-0 (40) Georgiev,T (2307)-Levine,J (2025) Chess.com INT 2021}) 15. b3 {[%emt 0:08:56]} (15. Na4 $16) 15... Bc6 {[%emt 0:02:11]} 16. Qc2 {[%emt 0:01:42]} Qe6 {[%emt 0:04:21]} 17. Rfd1 {[%emt 0:08:24]} h6 {[%emt 0:00:58]} 18. Bxf6 {[%emt 0:00:27]} Bxf6 {[%emt 0:00:24]} 19. e3 {[%emt 0:00:53]} d4 {[%emt 0:07:48]} 20. exd4 {[%emt 0:04:20]} cxd4 {[%emt 0:03:49]} 21. Ne4 {[%emt 0:04:45]} Bxe4 {[%emt 0:00:29]} 22. Qxe4 {[%emt 0:02:43]} Qxe4 {[%emt 0:04:51]} 23. Bxe4 {[%emt 0:00:05]} Rd6 {[%emt 0:00:15]} 24. Rc7 {[%emt 0:00:41]} Bd8 {[%emt 0:00:35]} 25. Ra7 {[%emt 0:02:42] 0x0.001e7f237ef4dp-1022s more active pieces.} g6 {[%emt 0:03:25] [#]} ({Black should play} 25... a5 $14) 26. Bd3 {[%emt 0:01:07]} (26. b4 $1 $16) 26... a5 $1 {[%emt 0:00:29]} 27. Re1 {[%emt 0:01:56]} Kg7 {[%emt 0:01:20]} 28. Re4 {[%emt 0:01:31]} Bb6 {[%emt 0:01:10]} 29. Rb7 {[%emt 0:00:18]} Bd8 {[%emt 0:01:04]} 30. Kf1 {[%emt 0:00:14]} h5 {[%emt 0:00:35]} 31. Ke2 {[%emt 0:01:06]} Kh6 {[%emt 0:00:39]} 32. Bc4 {[%emt 0:01:41]} (32. f4 $14) 32... f5 $11 {[%emt 0:00:31]} 33. Re5 {[%emt 0:00:22]} d3+ {[%emt 0:01:49]} 34. Bxd3 {[%emt 0:02:48]} Bf6 {[%emt 0:01:07]} 35. Re3 {[%emt 0:00:05]} ({But not} 35. Rxa5 $2 Re8+ 36. Kf1 (36. Kd2 $2 Red8 $19) 36... Rxd3 $19) 35... Rfd8 {[%emt 0:01:18]} 36. f4 {[%emt 0:02:57]} R8d7 {[%emt 0:01:14]} 37. Rxd7 {[%emt 0:01:11]} Rxd7 $14 {[%emt 0:00:06][%mdl 4096] Endgame KRB-KRB} 38. Re6 {[%emt 0:00:53]} Kg7 {[%emt 0:00:19]} 39. Kd2 {[%emt 0:00:42]} Rc7 {[%emt 0:00:22]} 40. Bc4 {[%emt 0:00:25]} Be7 {[%emt 0:01:55]} 41. Kc3 {[%emt 0:34:53]} Bf6+ {[%emt 0:30:46]} 42. Kd3 {[%emt 0:00:25]} Rd7+ {[%emt 0:00:16]} 43. Ke3 {[%emt 0:02:08]} Bd4+ {[%emt 0:00:36]} 44. Kf3 {[%emt 0:00:21]} Bc3 {[%emt 0:00:58]} 45. h3 {[%emt 0:03:00]} Bf6 {[%emt 0:00:00]} 46. Re8 {[%emt 0:00:00]} Bb2 {[%emt 0:00:00]} 47. Rg8+ {[%emt 0:00:00]} Kf6 {[%emt 0:00:00]} 48. Ra8 {[%emt 0:00:00]} Bc3 {[%emt 0:00:00]} 49. Ra6+ {[%emt 0:00:00]} Kg7 {[%emt 0:00:00]} 50. Rb6 {[%emt 0:00:00]} Re7 {[%emt 0:00:00]} 51. Rb5 {[%emt 0:00:00]} Ra7 {[%emt 0:00:00]} 52. Bd5 {[%emt 0:00:00]} Be1 {[%emt 0:00:00]} 53. Bb7 {[%emt 0:00:00]} a4 {[%emt 0:00:00]} 54. b4 {[%emt 0:00:00]} a3 {[%emt 0:00:00]} 55. Bd5 {[%emt 0:00:00]} (55. Rb6 $5 {[%cal Rb4b5]}) 55... Rd7 {[%emt 0:00:00]} 56. Bb3 {[%emt 0:00:00]} Bc3 {[%emt 0:00:00]} 57. Ke2 {[%emt 0:00:00]} Rd2+ {[%emt 0:00:00]} 58. Ke3 {[%emt 0:00:00]} Rb2 {[%emt 0:00:00]} (58... Rg2 $11 {remains equal.}) 59. Rb7+ $16 {[%emt 0:00:00]} Kf8 {[%emt 0:00:00]} ({Better is} 59... Kh6 $1 $14) 60. Rf7+ {[%emt 0:00:00]} (60. b5 $16 {Threatens to win with b6.} Ba5 61. Bd5) 60... Ke8 $11 {[%emt 0:00:00] The position is equal.} 61. Ra7 {[%emt 0:00:00]} Bxb4 {[%emt 0:00:00]} 62. Kd4 {[%emt 0:00:00] Inhibits Bc5+.} Be7 {[%emt 0:01:42]} 63. Be6 {[%emt 0:00:00]} Rd2+ {[%emt 0:00:49]} 64. Ke3 {[%emt 0:02:38]} Bc5+ {[%emt 0:00:47]} 65. Kxd2 {[%emt 0:00:04]} Bxa7 {[%emt 0:00:07]} 66. Ke2 {[%emt 0:00:05] Weighted Error Value: White=0.17 (very precise) /Black=0.18 (very precise)} 1/2-1/2

[Event "Uruguayan Championship 2022"]
[Site "Montevideo"]
[Date "2022.04.12"]
[Round "5.4"]
[White "Roselli Mailhe, Bernardo"]
[Black "Vazquez, Facundo"]
[Result "1-0"]
[ECO "A29"]
[WhiteElo "2426"]
[BlackElo "2319"]
[Annotator "RC"]
[PlyCount "85"]
[EventDate "2022.04.08"]
[EventType "tourn"]
[EventCountry "URU"]
[SourceTitle "playchess.com"]
[Source "ChessBase"]
[SourceQuality "1"]
[TimeControl "40/5400+30:1800+30"]

1. c4 {[%emt 0:00:16]} e5 {[%emt 0:00:08]} 2. Nc3 {[%emt 0:00:18]} Nf6 {[%emt 0:00:09]} 3. Nf3 {[%emt 0:01:41]} Nc6 {[%emt 0:00:08]} 4. g3 {[%emt 0:00:18]} d5 {[%emt 0:07:30]} 5. cxd5 {[%emt 0:00:08]} Nxd5 {[%emt 0:00:02]} 6. d3 {[%emt 0:00:56]} Nb6 {[%emt 0:02:09]} 7. Bg2 {[%emt 0:00:13]} Be7 {[%emt 0:00:06]} 8. O-O {[%emt 0:00:09]} O-O {[%emt 0:00:04]} 9. a3 {[%emt 0:00:28]} a5 {[%emt 0:02:11]} 10. Be3 {[%emt 0:04:21]} Re8 {[%emt 0:05:55]} 11. Rc1 {[%emt 0:07:14]} a4 {[%emt 0:01:16]} 12. Bxb6 {[%emt 0:09:01]} cxb6 {[%emt 0:00:03]} 13. Nd2 {[%emt 0:05:29]} Bg5 {[%emt 0:03:47]} 14. e3 {[%emt 0:05:20]} Be6 {[%emt 0:26:25]} 15. Nxa4 {[%emt 0:08:22]} Na5 {[%emt 0:06:49]} 16. Qc2 {[%emt 0:06:20]} Rc8 {[%emt 0:02:53]} 17. Qb1 {[%emt 0:00:50]} Rxc1 {[%emt 0:02:03]} 18. Rxc1 {[%emt 0:00:09]} Nb3 {[%emt 0:00:20]} 19. Nxb3 {[%emt 0:01:53]} Bxb3 {[%emt 0:00:03]} 20. Nc3 {[%emt 0:00:10]} Qd7 {[%emt 0:04:08]} 21. Ne4 {[%emt 0:01:51]} Be7 {[%emt 0:05:50]} 22. Rc3 {[%emt 0:00:13]} Bd5 {[%emt 0:03:28]} 23. Nd2 {[%emt 0:00:34]} Bxg2 {[%emt 0:02:11]} 24. Kxg2 {[%emt 0:00:05]} Qd5+ {[%emt 0:02:59]} 25. Kg1 {[%emt 0:01:59]} h5 {[%emt 0:00:12]} 26. Qd1 {[%emt 0:17:02]} h4 {[%emt 0:01:06]} 27. Qg4 {[%emt 0:00:21]} hxg3 {[%emt 0:01:08]} 28. hxg3 {[%emt 0:00:06]} g6 {[%emt 0:01:36]} 29. Qc4 {[%emt 0:01:58]} Qd7 {[%emt 0:03:08]} 30. Qc7 {[%emt 0:02:08]} Qb5 {[%emt 0:00:29]} 31. Nc4 {[%emt 0:02:08]} e4 {[%emt 0:01:41]} 32. dxe4 {[%emt 0:06:58]} Qh5 {[%emt 0:03:34]} 33. Rc1 {[%emt 0:01:39]} Kg7 {[%emt 0:03:44]} 34. Kg2 {[%emt 0:03:12]} Bd8 {[%emt 0:01:33]} 35. Qf4 {[%emt 0:02:22]} Rh8 {[%emt 0:01:45]} 36. Qe5+ {[%emt 0:00:09]} Qxe5 {[%emt 0:00:38]} 37. Nxe5 {[%emt 0:00:09]} Bf6 {[%emt 0:00:02]} 38. Nd3 {[%emt 0:00:11]} Rd8 {[%emt 0:00:17]} 39. Rd1 {[%emt 0:00:06]} Rc8 {[%emt 0:00:06]} 40. e5 {[%emt 0:01:02]} Be7 {[%emt 0:00:10]} 41. Rc1 {[%emt 0:32:06]} Rd8 {[%emt 0:30:14]} 42. Rc3 {[%emt 0:00:15]} Rd5 {[%emt 0:01:02]} 43. Kf3 {[%emt 0:02:17]} 1-0

[Event "Uruguayan Championship 2022"]
[Site "Montevideo"]
[Date "2022.04.12"]
[Round "5.5"]
[White "Carbone, Diego"]
[Black "Vaz Lacuesta, Leonardo"]
[Result "1-0"]
[ECO "E04"]
[WhiteElo "2272"]
[BlackElo "2018"]
[Annotator "TA"]
[PlyCount "67"]
[EventDate "2022.04.08"]
[EventType "tourn"]
[EventCountry "URU"]
[SourceTitle "playchess.com"]
[Source "ChessBase"]
[SourceQuality "1"]
[TimeControl "40/5400+30:1800+30"]

{[%evp 16,67,23,25,81,-1,31,31,23,22,53,62,86,50,110,31,42,13,16,10,4,14,73,48,73,53,109,100,116,21,34,15,88,85,180,168,272,302,234,279,485,519,510,504,449,462,805,778,842,839,808,692,1606,1502]} 1. d4 {[%emt 0:11:10]} Nf6 {[%emt 0:00:10]} 2. c4 {[%emt 0:00:26]} e6 {[%emt 0:00:13]} 3. g3 {[%emt 0:00:18]} d5 {[%emt 0:00:43]} 4. Nf3 {[%emt 0:00:33]} dxc4 {[%emt 0:01:58]} 5. Bg2 {[%emt 0:00:17]} Nc6 {[%emt 0:00:09]} 6. Qa4 {[%emt 0:01:01]} Bb4+ {[%emt 0:00:48]} 7. Bd2 {[%emt 0:00:09]} Nd5 {[%emt 0:01:01]} 8. Bxb4 {[%emt 0:01:08]} Ndxb4 {[%emt 0:00:38]} 9. O-O {[%emt 0:01:06]} O-O {[%emt 0:01:21] E04: Open Catalan: 5 Nf3.} (9... Rb8 $11) 10. Na3 {[%emt 0:00:32]} (10. a3 $16 Nd5 11. Qxc4) 10... Rb8 {[%emt 0:00:09]} 11. Qb5 $1 {[%emt 0:01:20]} Qe7 {[%emt 0:03:11] White is slightly better.} 12. Qxc4 {[%emt 0:03:06]} Bd7 {[%emt 0:14:12]} 13. e4 {[%emt 0:09:44] [#]} Rfc8 $146 {[%emt 0:04:50]} ({Predecessor:} 13... a6 14. Qc3 Rfc8 15. Rfd1 b5 16. d5 exd5 17. exd5 Nxd5 18. Rxd5 b4 19. Qd3 Be6 {½-½ (45) Tkachiev,V (2634)-Godena,M (2552) Cannes 1999}) 14. Rfd1 {[%emt 0:08:51]} b6 {[%emt 0:15:04]} ({Black should try} 14... b5 $14 15. Qe2 (15. Nxb5 Na5 $17) 15... a6) 15. Nb1 {[%emt 0:03:09]} (15. d5 $16) 15... Na5 $14 {[%emt 0:02:29]} 16. Qc3 {[%emt 0:00:35]} (16. Qe2 $5 {[%cal Ra2a3]}) 16... c5 {[%emt 0:06:33] White must now prevent ...cxd4.} 17. d5 {[%emt 0:03:45]} exd5 {[%emt 0:02:38]} 18. exd5 {[%emt 0:00:03]} Rd8 {[%emt 0:03:35] [#]} (18... Bf5 $11) 19. a3 $1 $16 {[%emt 0:04:24]} Na6 {[%emt 0:10:53]} 20. Nbd2 {[%emt 0:17:28]} Nb7 {[%emt 0:09:34]} ({Better is} 20... Be8 $14) 21. Re1 {[%emt 0:03:06]} Qf8 {[%emt 0:05:28] [#]} 22. Nc4 {[%emt 0:06:09]} ({Don't take} 22. Qd3 Nc7 $14) (22. Ne5 $1 $16) 22... f6 $11 {[%emt 0:03:22]} 23. Rad1 {[%emt 0:04:57]} Be8 {[%emt 0:01:22]} (23... Nc7 $11 {remains equal.}) 24. Nh4 $36 {[%emt 0:01:51][%cal Od5d6,Bf3h4,Bh4f5,Bf5e7][%mdl 2080] d6! is the strong threat. Black is under strong pressure. &Bianco is much more active.} b5 {[%emt 0:01:27]} (24... Kh8 $16) 25. Na5 $18 {[%emt 0:04:27]} Nxa5 {[%emt 0:05:27]} (25... b4 $142 26. axb4 cxb4) 26. Qxa5 {[%emt 0:00:07]} Rb6 {[%emt 0:00:03]} 27. Nf5 {[%emt 0:02:01]} g6 $2 {[%emt 0:01:35]} (27... Kh8 28. Re3 g6) 28. Ne7+ {[%emt 0:00:23] White is clearly winning.} Kh8 {[%emt 0:00:45]} 29. Nc6 {[%emt 0:01:27]} Rd6 {[%emt 0:02:04]} 30. Nxa7 {[%emt 0:01:59]} Nb8 {[%emt 0:03:11]} (30... Rb7 $142 31. Nc8 Bf7) 31. Nc8 {[%emt 0:01:34][%csl LRb6,LRd6]} Ra6 {[%emt 0:00:13] [#]} 32. Nxd6 $1 {[%emt 0:01:30]} Rxd6 {[%emt 0:00:03]} 33. Qc7 {[%emt 0:00:19]} Na6 {[%emt 0:00:40] [#]} 34. Rxe8 $1 {[%emt 0:00:26] Weighted Error Value: White=0.25 (precise) /Black=0.42} 1-0